Cogmind - Beta 17 @@@ ROGUE MODE // 2026.08.16 @ 05:41:42 Player: 4R-ZE3 Result: Destroyed by OQ-GE7(R) with Subdweller Machine Gun Performance ------------- Evolutions (0) 0 Regions Visited (2) 400 Robots Destroyed (27) 135 Value Destroyed (809) 809 Prototype IDs (0) 0 Alien Tech Used (0) 0 Bonus (0) 0 TOTAL SCORE: 1344 Bonus ------- None Cogmind --------- Core Integrity 0/250 Matter 181/300 Energy 250/250 System Corruption 0% Temperature Cool (0) Movement Treading (160) Location -10/Subcaves Parts ------- > --- POWER (1) -------- Ion Engine > --- PROPULSION (2) --- Light Treads Light Treads > --- UTILITY (2) ------ Large Storage Unit Light Armor Plating > --- WEAPON (2) ------- Battle Rifle Subdweller Machine Gun > --- INVENTORY (15) --- Heat Sink Heat Sink Heat Sink Heat Sink Improved Heat Sink Large Storage Unit High-capacity Storage Unit Light Armor Plating Light Armor Plating Gun Armor Beam Cannon Beam Cannon Beam Cannon Grenade Launcher Peak State ------------ > --- POWER ------------ Ion Engine > --- PROPULSION ------- Light Treads Light Treads > --- UTILITY ---------- Improved Heat Sink Large Storage Unit > --- WEAPON ----------- Battle Rifle Subdweller Machine Gun > --- INVENTORY -------- Heat Sink Heat Sink Heat Sink Heat Sink Large Storage Unit High-capacity Storage Unit Light Armor Plating Light Armor Plating Light Armor Plating Gun Armor Beam Cannon Beam Cannon Beam Cannon Grenade Launcher [Rating: 13] Favorites ----------- Power Light Nuclear Core Engine Ion Engine Power Core Light Nuclear Core Propulsion Light Treads Treads Light Treads Wheel Wheel Utility Improved Heat Sink Device Improved Heat Sink Storage Large Storage Unit Protection Light Armor Plating Weapon Beam Cannon Energy Cannon Beam Cannon Ballistic Gun Light Assault Rifle Launcher Grenade Launcher Build | -11 -10 -10 ------- Run | Yrd Mat Sub Slots Evolved . | . . . Power . | . . . Propulsion . | . . . Utility . | . . . Weapon . | . . . Parts Attached 24 | 8 9 7 Power 3 | 1 1 1 Engine 2 | 1 . 1 Core 1 | . 1 . Reactor . | . . . Propulsion 6 | 4 1 1 Treads 4 | 2 1 1 Leg . | . . . Wheel 2 | 2 . . Hover . | . . . Flight . | . . . Utility 6 | 1 4 1 Device 2 | . 2 . Storage 3 | 1 2 . Processor . | . . . Hackware . | . . . Protection 1 | . . 1 Artifact . | . . . Weapon 9 | 2 3 4 Energy Gun . | . . . Energy Cannon 4 | . 3 1 Ballistic Gun 4 | 2 . 2 Ballistic Cannon . | . . . Launcher 1 | . . 1 Special Weapon . | . . . Impact Weapon . | . . . Slashing Weapon . | . . . Piercing Weapon . | . . . Special Melee Weapon . | . . . Unidentified Prototypes . | . . . Parts Lost 5 | . 1 4 Power 1 | . . 1 Propulsion 2 | . . 2 Utility . | . . . Weapon 2 | . 1 1 Highest Loss Streak 3 | . 1 3 To Critical Strikes . | . . . Average Backups 9 | 2 8 12 Power . | . 1 . Propulsion 1 | 1 2 . Utility 5 | . 2 9 Weapon 2 | . 2 3 Tool/Special . | . . . Unused Backups 8 | . . 8 Power . | . . . Propulsion . | . . . Utility 7 | . . 7 Weapon 1 | . . 1 Tool/Special . | . . . Average Slot Usage (%) 99 | . 99 99 Engine 6 | . 2 12 Core 7 | . 11 1 Treads 27 | . 28 27 Device 13 | . 13 13 Storage 14 | . 14 14 Energy Cannon 23 | . 23 22 Ballistic Gun 4 | . 4 5 Peak Build Rating 13 | 6 12 13 Average Rating 10 | 4 10 10 On Entrance 6 | . 6 12 Avg Prop Armor Cover (%) . | . . . Naked Turns . | . . . Heaviest Build 34 | 10 32 34 Greatest Support 40 | 40 40 40 Greatest Overweight (x) . | . . . Average Overweight (x) . | . . . Largest Inventory Capacity 15 | 8 15 15 Average Capacity 12 | 6 10 15 Most Carried 15 | 3 15 15 Average Carried 9 | 2 8 12 Final Capacity 15 | 8 15 15 Final Carried 15 | 3 15 14 Class Distribution -------------------- 100% | Mutant Dominant Class ---------------- Mutant | -10/Materials Mutant | -10/Subcaves Resources | -11 -10 -10 ----------- Run | Yrd Mat Sub Matter Collected 493 | 209 167 117 Remotely . | . . . Salvage Created 888 | . 712 176 Parts 61 | . 46 15 Haulers Intercepted 2 | . 2 . Recyclers Shooed 1 | . 1 . Parts Field Recycled . | . . . Retrieved Matter . | . . . Parts Self-Destructed 6 | . . 6 Prevented . | . . . Parts Restored . | . . . Kills | -11 -10 -10 ------- Run | Yrd Mat Sub Combat Hostiles Destroyed 23 | . 16 7 Guns 2 | . 1 1 Cannons 17 | . 15 2 AOE 4 | . . 4 Classes Destroyed 6 | . 5 1 Worker 1 | . 1 . Hauler 2 | . 2 . Operator 1 | . 1 . Swarmer 3 | . 3 . Grunt 13 | . 13 . Subdweller 7 | . . 7 Best Kill Streak 3 | . 3 3 Combat Bots Only 3 | . 3 3 Max Kills in Single Turn 2 | . 2 2 Gunslinging . | . . . Exploded 2 | . . 2 Melee . | . . . Uniques/NPCs Destroyed . | . . . Combat | -11 -10 -10 -------- Run | Yrd Mat Sub Hostile Shots Fired 126 | . 83 43 Missed 35 | . 23 12 Hits 91 | . 60 31 Projectile 91 | . 60 31 Critical Strikes 1 | . . 1 Damage Taken 1244 | . 631 613 Core 250 | . 139 111 Absorbed by Shields . | . . . Core Remaining (%) 100 | 100 . . Volleys Fired 81 | . 47 34 Largest 2 | . 2 2 Hottest 120 | . 120 120 Shots Fired 146 | . 94 52 Gun 15 | . 6 9 Cannon 120 | . 88 32 Launcher 11 | . . 11 Special . | . . . Kinetic 15 | . 6 9 Thermal 120 | . 88 32 Explosive 11 | . . 11 Electromagnetic . | . . . Robot Hit Streak 14 | . 9 14 Robot Miss Streak 3 | . 3 2 Penetration Max . | . . . Secondary Targets . | . . . Shots Hit Robots 84 | . 53 31 Core Hits 41 | . 24 17 Critical Kills . | . . . Critical Parts Destroyed . | . . . Critical Strikes . | . . . Melee Attacks . | . . . Impact . | . . . Slashing . | . . . Piercing . | . . . Sneak Attacks . | . . . Combat Hostiles . | . . . Follow-up Attacks . | . . . Damage Inflicted 1964 | . 918 1046 Guns 144 | . 45 99 Cannons 1310 | . 873 437 Explosions 510 | . . 510 Melee . | . . . Ramming . | . . . Kinetic 144 | . 45 99 Thermal 1310 | . 873 437 Explosive 510 | . . 510 Electromagnetic . | . . . Impact . | . . . Slashing . | . . . Piercing . | . . . Highest Corruption . | . . . Average Corruption . | . . . Corruption Purged . | . . . Corruption Blocked . | . . . Overload Shots . | . . . Overflow Damage . | . . . Projectiles . | . . . Explosions . | . . . Melee . | . . . Knockbacks . | . . . Impact . | . . . Kinetic . | . . . Secondary . | . . . Self-Inflicted Damage . | . . . Shots . | . . . Rammed . | . . . Targets Rammed . | . . . Kicked . | . . . Crushed . | . . . Highest Temperature 264 | . 264 . Average Temperature 98 | . 98 . Received Heat Transfer 285 | . 276 9 Effects 3 | . 3 . Interference 3 | . 3 . Siege Activations . | . . . Martial Activations . | . . . Shielding Activations . | . . . Robots Disrupted . | . . . Combat Hostiles . | . . . Robots Corrupted . | . . . Combat Hostiles . | . . . Parts Fried . | . . . Impact Corruptions . | . . . Robots Melted . | . . . Combat Hostiles . | . . . Parts Melted 1 | . 1 . Heat Transferred 2738 | . 1813 925 Parts Sabotaged . | . . . Parts Stolen . | . . . Parts Stripped . | . . . Power Chain Reactions . | . . . Alert | -11 -10 -10 ------- Run | Yrd Mat Sub Maximum Alert Level . | . . . Low Security (%) 100 | 100 100 . Level 1 . | . . . Level 2 . | . . . Level 3 . | . . . Level 4 . | . . . Level 5 . | . . . High Security . | . . . Max Security . | . . . Peak Influence 159 | . 159 . Initial . | . . . Average 74 | . 79 . Influence Increases 539 | . 539 . Destroy 0b10 Robot/C 320 | . 320 . Destroy 0b10 Robot/NC 20 | . 20 . Destroy Leader 74 | . 74 . Successful Hack 17 | . 17 . Select Force Hacks 60 | . 60 . Disable Machine 15 | . 15 . Destroy Structure 3 | . 3 . Lose Combat Pursuer 30 | . 30 . Influence Decreases 539 | . 397 142 Entered New Map 69 | . . 69 Time Decay 430 | . 387 43 Lost Part 40 | . 10 30 Squads Dispatched 6 | . 6 . Investigation 4 | . 4 . Extermination . | . . . Reinforcement 2 | . 2 . Assault . | . . . Garrison . | . . . Intercept . | . . . Searches Triggered . | . . . Construction Impeded . | . . . Haulers Reinforced . | . . . Active Scanning Responses . | . . . Cargo Convoy Interrupts . | . . . Stealth | -11 -10 -10 --------- Run | Yrd Mat Sub Distress Signals 4 | . 4 . Communications Jammed . | . . . Distress Signals . | . . . Times Spotted 30 | . 23 7 Peak Tracking Total 6 | . 6 3 Tactical Retreats 1 | . 1 . Traps | -11 -10 -10 ------- Run | Yrd Mat Sub Traps Triggered 2 | . 2 . Indirectly . | . . . Trap Hack Attempts . | . . . Triggered . | . . . Disarmed . | . . . Reprogrammed . | . . . Reused . | . . . Traps Extracted . | . . . Installed . | . . . Triggered . | . . . Machines | -11 -10 -10 ---------- Run | Yrd Mat Sub Machines Disabled 1 | . 1 . Max in Single Turn 1 | . 1 . Machines Repaired . | . . . Machines Dismantled . | . . . Machines Sabotaged . | . . . Overloaded Fab Kills . | . . . Hacking | -11 -10 -10 --------- Run | Yrd Mat Sub Machines Accessed 6 | . 6 . Terminals 4 | . 4 . Fabricators . | . . . Repair Stations . | . . . Recycling Units 2 | . 2 . Scanalyzers . | . . . Garrison Access . | . . . Total Hacks 14 | . 14 . Successful 8 | . 8 . Failed 5 | . 5 . Catastrophic 1 | . 1 . Database Lockouts 1 | . 1 . Manual 14 | . 14 . Terminals 12 | . 12 . Fabricators . | . . . Repair Stations . | . . . Recycling Units 2 | . 2 . Scanalyzers . | . . . Garrison Access . | . . . Terminal Hacks 3 | . 3 . Robot Analysis 2 | . 2 . Zone Layout 1 | . 1 . Fabricator Hacks . | . . . Repair Station Hacks . | . . . Recycling Unit Hacks . | . . . Scanalyzer . | . . . Garrison Access Hacks . | . . . Unauthorized Hacks 5 | . 5 . Terminals 3 | . 3 . Botnet 3 | . 3 . Fabricators . | . . . Repair Stations . | . . . Recycling Units 2 | . 2 . Tunnel 2 | . 2 . Scanalyzers . | . . . Garrison Access . | . . . Data Cores Recovered . | . . . Used . | . . . Hacking Detections 3 | . 3 . Full Trace Events 1 | . 1 . Feedback Events . | . . . Feedback Blocked . | . . . Robot Schematics Acquired . | . . . Robots Built . | . . . Authchips . | . . . Time . | . . . Total Robot Build Rating . | . . . Part Schematics Acquired . | . . . Parts Built . | . . . Authchips . | . . . Time . | . . . Total Part Build Rating . | . . . Part Studies Acquired . | . . . Parts Repaired . | . . . Time . | . . . Parts Recycled . | . . . Recycled Matter . | . . . Retrieved Matter . | . . . Retrieved Components . | . . . Parts Scanalyzed . | . . . Part Schematics Acquired . | . . . Parts Damaged . | . . . Bothacking | -11 -10 -10 ------------ Run | Yrd Mat Sub Used RIF Installer . | . . . Robots Hacked . | . . . Non-combat . | . . . Combat . | . . . Robot Hacks Applied . | . . . Relay Couplers Released . | . . . Fabnet Peak Effective % . | . . . Robots Rewired . | . . . Allies Hacked . | . . . Hacks Repelled . | . . . Allies | -11 -10 -10 -------- Run | Yrd Mat Sub Total Allies . | . . . Largest Group . | . . . Highest-Rated Group . | . . . Highest-Rated Ally . | . . . Total Orders . | . . . Ally Attacks . | . . . Total Damage . | . . . Kills . | . . . Allies Corrupted . | . . . Allies Melted . | . . . Intel | -11 -10 -10 ------- Run | Yrd Mat Sub Active Infowar (turns) . | . . . Robot Analysis Total 2 | . 2 . Derelict Logs Recovered 1 | . . 1 Drone Launches . | . . . Drone Recoveries . | . . . Exploration | -11 -10 -10 ------------- Run | Yrd Mat Sub Turns Passed 1926 | 71 1089 766 Spaces Moved 1005 | 43 555 407 Core 1 | 1 . . Treads 990 | 28 555 407 Legs . | . . . Wheels 14 | 14 . . Hover . | . . . Flight . | . . . Fastest Speed 50 | 50 160 160 Average Speed 158 | 131 160 160 Slowest Speed 160 | 160 160 160 Overloaded Moves . | . . . Propulsion Burnouts . | . . . Robots Hopped . | . . . Potential Cave-ins . | . . . Cave-ins Triggered . | . . . Exploration Rate (%) 39 | 4 90 24 Regions Visited 2 Branch Regions 1 Pre-discovered Areas 2 | . 2 . Known Exits Taken . | . . . Unknown Exits Taken 2 | 1 1 . Scrap Searched . | . . . Spaces Dug . | . . . Terrain Destroyed 17 | . . 17 Melee . | . . . Projectile . | . . . AOE 17 | . . 17 Terrain Rammed . | . . . Walls Destroyed . | . . . Machines Disabled . | . . . Actions | -11 -10 -10 --------- Run | Yrd Mat Sub Total 1187 | 54 665 468 Wait 46 | . 33 13 Move 1003 | 42 554 407 Hop . | . . . Pick Up 20 | 4 14 2 Fast Attach 8 | 5 3 . Attach 6 | 1 1 4 Detach . | . . . Swap 15 | 2 5 8 Drop 8 | . 8 . Fire 81 | . 47 34 Melee . | . . . Ram . | . . . Kick . | . . . Crush . | . . . Escape Stasis . | . . . Rewire . | . . . Trap . | . . . Miscellaneous . | . . . Route ------- -11/Scrapyard -10/Materials (discovered 5 exits: [*Mat x3] / [*Min] / [*Sub]) -10/Subcaves History --------- Turn | Location | Event 12 | -11/Scrapyard | Discovered new exit (range 15) 72 | -11/Scrapyard | Entered Materials 313 | -10/Materials | Build established: Mutant 323 | -10/Materials | Discovered new exit (range 15) 492 | -10/Materials | Discovered new exit (range 14) 857 | -10/Materials | Core integrity fell below 50% 947 | -10/Materials | Discovered new exit (range 15) 1040 | -10/Materials | Central database locked down 1086 | -10/Materials | Discovered new exit (range 20) 1157 | -10/Materials | Discovered new exit (range 3) 1161 | -10/Materials | Entered Subcaves 1166 | -10/Subcaves | Learned location of 1 exit from Materials 1226 | -10/Subcaves | Ambushed by Subdwellers from Twisted Machinery 1259 | -10/Subcaves | Core integrity fell below 20% 1274 | -10/Subcaves | Lost 3 parts (1p2n) 1452 | -10/Subcaves | Shifting Twisted Machinery released Sub. Optics 1765 | -10/Subcaves | A Subdweller sparked back to life 1802 | -10/Subcaves | Found Prototype Protection 1927 | -10/Subcaves | Destroyed by OQ-GE7(R) with Subdweller Machine Gun Last Messages --------------- 01283_ The unstable cave ceiling collapses. 01283_ Acquired 13 matter. 01284_ Acquired 30 matter. 01291_ Subatomizers dissect the Sub. Optics. 01325_ Beam Cannon destroyed. 01337_ PD-638(R) destroyed. 01340_ Acquired 44 matter. 01406_ LR-SF5(z): "She is not going to be happy we haven't found any suitable candidates yet." Sub. Optics falls loose from the Twisted Machinery. 01765_ GJ-DS8(R) creaks and sparks as it begins to move. 01767_ SR-Q9Q(R) destroyed. 01802_ Acquired Prototype Protection. 01812_ Subatomizers dissect the Sub. Monowheel. 01896_ CU-4II(R) destroyed. 01899_ Acquired 30 matter. 01909_ Subatomizers dissect the Sub. Monowheel. Map ----- +----------------------------------------------------+ | ?????????????????????????"?????????????# #?????? | | ??????????????????????????"?######?????# #?????? | | ??????????????????????????? # ??????# #?????? | | ???????????????????????????? ##???### #?????? | | ????????????????????????????## "#??## #?????? | | ??????????????????????###?###" "#### ##?????? | | ??????????????????????# ### " ## ##??????? | | ??????????????????????# ##???????? | | ??????????????????????# ## ##????????? | | ????????????????????### ###???????? | | ???????????????????## #???????? | | ???????????????????# #???????? | | ???????????????????# ####### ### #???????? | | ???#???????????????# ??????## #######???????? | | ???# ????????????? ??????### ##???????????? | | ???## ??????????# ??????# ##??????????? | | ???#"" #####?#### ???????## ##?????????? | | ???#"" "### ##" ????????## ## #??????#### | | ????""" """ #" ??????????###### ##???### # | | ???? """"" #"""?????????????## #??## | | ????" "##### ####??????????????# ##?# | | ???????????## ##????????????????#### #### | | ????????????# #???????########????# ##### | | ????????????# ##???#### ## #????# #??# | | #?########### #??## #??### ##?# | | ## # # # #??# @ #### #?# | | "" ##### # ## ##### #?#### | | # # ### R ##### ##???# | | ##### # # # ## ### ## #???# | | ##### ##### # ## #####?# #??## | | # #???#### ! # ### ## #??# | | ######???####=& ## !" #### | | ####??# ##????## &&### ## ""# | | ####??# ##??##!* #?####### "## # | | # #??# #??# ####???????## ??## ## | | ### #??# #??# #???????????# #??# ####? | | #?## #??# #???????????# #?# #???? | | ### #??## #??????????# ? #?# #???? | | # #???####??????????"???# #???? | | = #????????????????? ???## #???? | | " = ! ###??????????????????????# #???? | | & ####????????????????????????## #???? | | " " ##????????????????????????????## #???? | | #& " " ##??????????????????????????????#### #???? | | ### ##?????????????????????????????????? #???? | | ??# ##??????????????????????????????????? #???? | | ??# #???????????????????????????????????? #????? | | ??## #???????????????????????????????????? ?????? | | ???###???????????????????????????????????????????? | | ?????????????????????????????????????????????????? | +----------------------------------------------------+ Best States ------------- Heat Dissipation 39 Energy Generation 14 Energy Capacity 250 Matter Stores 300 Matter Capacity 300 Sight Range 16 Terrain Scan Density 10 Armor Coverage 150 Evasion (%) 44 Recoil Reduction 2 Item Schematics ----------------- None Robot Schematics ------------------ None Fabricated ------------ Nothing Repaired ---------- Nothing Studied --------- None Alien Tech Used ----------------- None Achievements -------------- None Challenges ------------ None Game ------ Seed PortableWeldingSpecial Manual? 0 Play Time 00:12:02 Cumulative 253.2 hours Start 2026.08.16 @ 05:33:02 End 2026.08.16 @ 05:41:42 Sessions 1 Manual Loads 0 Difficulty Rogue Special Mode None Game No. 248 Rogue 194 Adventurer 54 Explorer 0 Win Type - Total 11 Types 7/0/1/1/0/0/0/1/0/1 Lore% 76 Gallery% 64 Achievement% 59 Wizard Run 0 Options --------- Layout 1 ASCII 0 Keyboard 0 Movement Mouse Keybinds 1 Fullscreen 2 Font 32/Tamsyn Map View 50x35 Zoom Use 0% Tactical HUD 1 Map Filters NONE Filters NONE Steam 1 RUN: 3bd06f21-1f86-44ba-8aa5-db964bf63dcb